{"text_format":"1","workbook":"xlsx","n_sheets":1,"sheets":["ورقة1"],"not_rendered":{"charts":0,"images":0,"macros":1,"external_links":0,"defined_names":1,"comments":0,"pivot_tables":0},"unopened":[],"bounds":{"document_bytes":16777216,"sheet_cells":100000,"rows_first":2000,"rows_last":500,"rows_between":2000,"halvings":0,"cell_chars":16384,"cell_head_chars":4096},"cells_cut":0,"cells_raw":0,"read":"whole","date_system":"1900"}

{"sheet":"ورقة1","index":0,"n_rows":96,"n_cols":5,"rows_kept":96,"cut":false,"hidden":false,"merged":[]}
[]
[]
[]
[]
[]
[null,"اسم الطالب ","الترتيب بدالة معرفة ( بالكود ) ","التريب بدلة rank","المجموع "]
[null,"الطالب 1",{"$f":"Kh_RANK($E7,$E$7:$E$96,\"مكرر\")","v":"الأول"},{"$f":"IF(E7=\"\",\"\",RANK(E7,$E$7:$E$96,0))","v":1},658]
[null,"الطالب 2","الأول مكرر",1,658]
[null,"الطالب 3","الثاني",3,651]
[null,"الطالب 4","الثالث",4,646]
[null,"الطالب 42","الثالث مكرر",4,646]
[null,"الطالب 43","الرابع",6,645]
[null,"الطالب 5","الخامس",7,644]
[null,"الطالب 6","السادس",8,639]
[null,"الطالب 7","السابع",9,638]
[null,"الطالب 45","الثامن",10,635]
[null,"الطالب 8","التاسع",11,630]
[null,"الطالب 9","العاشر",12,627]
[null,"الطالب 47","العاشر مكرر",12,627]
[null,"الطالب 44","الحادي عشر",14,625]
[null,"الطالب 10","الثاني عشر",15,620]
[null,"الطالب 48","الثاني عشر مكرر",15,620]
[null,"الطالب 11","الثالث عشر",17,619]
[null,"الطالب 49","الثالث عشر مكرر",17,619]
[null,"الطالب 46","الرابع عشر",19,618]
[null,"الطالب 12","الرابع عشر مكرر",19,618]
[null,"الطالب 50","الرابع عشر مكرر",19,618]
[null,"الطالب 13","الخامس عشر",22,617]
[null,"الطالب 51","الخامس عشر مكرر",22,617]
[null,"الطالب 14","السادس عشر",24,606]
[null,"الطالب 52","السادس عشر مكرر",24,606]
[null,"الطالب 15","السابع عشر",26,593]
[null,"الطالب 53","السابع عشر مكرر",26,593]
[null,"الطالب 16","الثامن عشر",28,581]
[null,"الطالب 54","الثامن عشر مكرر",28,581]
[null,"الطالب 17","التاسع عشر",30,576]
[null,"الطالب 55","التاسع عشر مكرر",30,576]
[null,"الطالب 18","العشرون",32,573]
[null,"الطالب 56",{"$f":"Kh_RANK($E39,$E$7:$E$96,\"مكرر\")","v":"العشرون مكرر"},{"$f":"IF(E39=\"\",\"\",RANK(E39,$E$7:$E$96,0))","v":32},573]
[null,"الطالب 19","الواحد والعشرون",34,570]
[null,"الطالب 20","الواحد والعشرون مكرر",34,570]
[null,"الطالب 57","الواحد والعشرون مكرر",34,570]
[null,"الطالب 58","الواحد والعشرون مكرر",34,570]
[null,"الطالب 21","الثاني والعشرون",38,566]
[null,"الطالب 59","الثاني والعشرون مكرر",38,566]
[null,"الطالب 22","الثالث والعشرون",40,563]
[null,"الطالب 60","الثالث والعشرون مكرر",40,563]
[null,"الطالب 23","الرابع والعشرون",42,561]
[null,"الطالب 24","الرابع والعشرون مكرر",42,561]
[null,"الطالب 25","الرابع والعشرون مكرر",42,561]
[null,"الطالب 61","الرابع والعشرون مكرر",42,561]
[null,"الطالب 62","الرابع والعشرون مكرر",42,561]
[null,"الطالب 63","الرابع والعشرون مكرر",42,561]
[null,"الطالب 26","الخامس والعشرون",48,553]
[null,"الطالب 64","الخامس والعشرون مكرر",48,553]
[null,"الطالب 27","السادس والعشرون",50,548]
[null,"الطالب 65","السادس والعشرون مكرر",50,548]
[null,"الطالب 28","السابع والعشرون",52,540]
[null,"الطالب 66","السابع والعشرون مكرر",52,540]
[null,"الطالب 29","الثامن والعشرون",54,536]
[null,"الطالب 67","الثامن والعشرون مكرر",54,536]
[null,"الطالب 30","التاسع والعشرون",56,533]
[null,"الطالب 68","التاسع والعشرون مكرر",56,533]
[null,"الطالب 31","الثلاثون",58,530]
[null,"الطالب 69","الثلاثون مكرر",58,530]
[null,"الطالب 32","الواحد والثلاثون",60,529]
[null,"الطالب 70","الواحد والثلاثون مكرر",60,529]
[null,"الطالب 33","الثاني والثلاثون",62,526]
[null,"الطالب 71","الثاني والثلاثون مكرر",62,526]
[null,"الطالب 34","الثالث والثلاثون",64,514]
[null,"الطالب 35",{"$f":"Kh_RANK($E71,$E$7:$E$96,\"مكرر\")","v":"الثالث والثلاثون مكرر"},{"$f":"IF(E71=\"\",\"\",RANK(E71,$E$7:$E$96,0))","v":64},514]
[null,"الطالب 72","الثالث والثلاثون مكرر",64,514]
[null,"الطالب 73","الثالث والثلاثون مكرر",64,514]
[null,"الطالب 36","الرابع والثلاثون",68,511]
[null,"الطالب 74","الرابع والثلاثون مكرر",68,511]
[null,"الطالب 37","الخامس والثلاثون",70,510]
[null,"الطالب 75","الخامس والثلاثون مكرر",70,510]
[null,"الطالب 38","السادس والثلاثون",72,504]
[null,"الطالب 76","السادس والثلاثون مكرر",72,504]
[null,"الطالب 39","السابع والثلاثون",74,495]
[null,"الطالب 77","السابع والثلاثون مكرر",74,495]
[null,"الطالب 40","الثامن والثلاثون",76,493]
[null,"الطالب 78","الثامن والثلاثون مكرر",76,493]
[null,"الطالب 41","التاسع والثلاثون",78,491]
[null,"الطالب 79","التاسع والثلاثون مكرر",78,491]
[null,"الطالب 80","الاربعون",80,490]
[null,"الطالب 81","الاربعون مكرر",80,490]
[null,"الطالب 82","الواحد والاربعون",82,484]
[null,"الطالب 83","الثاني والاربعون",83,467]
[null,"الطالب 84","الثالث والاربعون",84,459]
[null,"الطالب 85","الرابع والاربعون",85,454]
[null,"الطالب 86","الخامس والاربعون",86,452]
[null,"الطالب 87","السادس والاربعون",87,448]
[null,"الطالب 88","السابع والاربعون",88,446]
[null,"الطالب 89","الثامن والاربعون",89,436]
[null,"الطالب 90","التاسع والاربعون",90,435]